Cogmind - Beta 14 @@@ ROGUE MODE // 2025.05.02 @ 14:08:07 Player: CogMan Result: Destroyed self with Subdweller Shrapnel Launcher Performance ------------- Evolutions (0) 0 Regions Visited (2) 400 Robots Destroyed (17) 85 Value Destroyed (385) 385 Prototype IDs (0) 0 Alien Tech Used (0) 0 Bonus (0) 0 TOTAL SCORE: 870 Bonus ------- None Cogmind --------- Core Integrity 0/250 Matter 192/300 Energy 89/125 System Corruption 0% Temperature Cool (0) Movement Walking (190) Ox1 Location -10/Subcaves Parts ------- > --- POWER (1) -------- Light Ion Engine > --- PROPULSION (2) --- Aluminum Leg Aluminum Leg > --- UTILITY (2) ------ Medium Storage Unit Subdweller Optics > --- WEAPON (2) ------- Grenade Launcher Subdweller Shrapnel Launcher > --- INVENTORY (10) --- Light Nuclear Core Aluminum Leg Subdweller Monowheel Subdweller Monowheel Large Storage Unit Scrap Shield Assault Rifle Subdweller Machine Gun Makeshift Axe Peak State ------------ > --- POWER ------------ Light Ion Engine > --- PROPULSION ------- Aluminum Leg Aluminum Leg > --- UTILITY ---------- Medium Storage Unit Subdweller Optics > --- WEAPON ----------- Assault Rifle Makeshift Axe > --- INVENTORY -------- Light Nuclear Core Aluminum Leg Subdweller Monowheel Large Storage Unit Subdweller Optics Scrap Shield Subdweller Machine Gun Grenade Launcher Subdweller Shrapnel Launcher [Rating: 12] Favorites ----------- Power Light Ion Engine Engine Light Ion Engine Propulsion Aluminum Leg Leg Aluminum Leg Utility Medium Storage Unit Device Improved Terrain Scanner Storage Medium Storage Unit Weapon Light Assault Rifle Ballistic Gun Light Assault Rifle Launcher Grenade Launcher Special Weapon Mining Laser Slashing Weapon Makeshift Axe Build | -11 -10 -10 ------- Run | Yrd Mat Sub Slots Evolved . | . . . Power . | . . . Propulsion . | . . . Utility . | . . . Weapon . | . . . Parts Attached 34 | 7 9 18 Power 3 | 1 1 1 Engine 3 | 1 1 1 Core . | . . . Reactor . | . . . Propulsion 4 | 2 1 1 Treads . | . . . Leg 4 | 2 1 1 Wheel . | . . . Hover . | . . . Flight . | . . . Utility 8 | 2 3 3 Device 4 | 1 . 3 Storage 4 | 1 3 . Processor . | . . . Hackware . | . . . Protection . | . . . Artifact . | . . . Weapon 19 | 2 4 13 Energy Gun . | . . . Energy Cannon . | . . . Ballistic Gun 10 | 2 3 5 Ballistic Cannon . | . . . Launcher 6 | . 1 5 Special Weapon 1 | . . 1 Impact Weapon . | . . . Slashing Weapon 2 | . . 2 Piercing Weapon . | . . . Special Melee Weapon . | . . . Unidentified Prototypes . | . . . Parts Lost 3 | . . 3 Power 1 | . . 1 Propulsion 1 | . . 1 Utility . | . . . Weapon 1 | . . 1 Highest Loss Streak 3 | . . 3 To Critical Strikes . | . . . Average Slot Usage (%) 99 | . 99 99 Engine 13 | . 14 13 Leg 27 | . 28 27 Device 14 | . 14 14 Storage 13 | . 13 14 Ballistic Gun 25 | . 27 22 Launcher 1 | . . 3 Peak Build Rating 12 | 9 10 12 Average Rating 9 | 5 9 10 On Entrance 6 | . 9 10 Naked Turns . | . . . Heaviest Build 21 | 14 16 21 Greatest Support 20 | 20 20 20 Greatest Overweight (x) 1 | . . 1 Average Overweight (x) . | . . . Largest Inventory Capacity 25 | 8 25 10 Average Capacity 9 | 6 8 10 Most Carried 10 | 2 9 10 Average Carried 8 | 1 7 9 Final Capacity 10 | 8 10 10 Final Carried 10 | 2 9 10 Class Distribution -------------------- 68% | Mutant 31% | Scavenger-Mutant Dominant Class ---------------- Scavenger-Mutant | -10/Materials Mutant | -10/Subcaves Resources | -11 -10 -10 ----------- Run | Yrd Mat Sub Matter Collected 747 | 240 293 214 Remotely . | . . . Salvage Created 460 | 34 358 68 Parts 31 | 4 23 4 Haulers Intercepted . | . . . Recyclers Shooed . | . . . Parts Field Recycled . | . . . Retrieved Matter . | . . . Parts Self-Destructed 6 | . . 6 Prevented . | . . . Kills | -11 -10 -10 ------- Run | Yrd Mat Sub Combat Hostiles Destroyed 14 | . 12 2 Guns 12 | . 12 . AOE 2 | . . 2 Classes Destroyed 5 | 1 3 1 Worker 1 | . 1 . Tunneler 2 | 2 . . Swarmer 6 | . 6 . Grunt 6 | . 6 . Subdweller 2 | . . 2 Best Kill Streak 3 | 2 3 1 Combat Bots Only 3 | . 3 1 Max Kills in Single Turn 1 | 1 1 1 Gunslinging . | . . . Exploded 1 | . . 1 Melee . | . . . Uniques/NPCs Destroyed . | . . . Combat | -11 -10 -10 -------- Run | Yrd Mat Sub Hostile Shots Fired 85 | . 58 27 Missed 21 | . 13 8 Damage Taken 1118 | . 510 608 Core 255 | . 82 173 Absorbed by Shields . | . . . Core Remaining (%) 100 | 100 . . Volleys Fired 80 | 7 47 26 Largest 2 | 2 2 2 Hottest 100 | 40 40 100 Shots Fired 144 | 14 92 38 Gun 128 | 14 90 24 Cannon . | . . . Launcher 9 | . 2 7 Special 7 | . . 7 Kinetic 132 | 14 90 28 Thermal 7 | . . 7 Explosive 5 | . 2 3 Electromagnetic . | . . . Robot Hit Streak 17 | 2 12 17 Robot Miss Streak 6 | 2 6 2 Penetration Max . | . . . Secondary Targets . | . . . Shots Hit Robots 85 | 7 58 20 Core Hits 31 | 3 24 4 Critical Kills 2 | . 2 . Critical Parts Destroyed 1 | 1 . . Critical Strikes 3 | 1 2 . Destroy 3 | 1 2 . Melee Attacks 17 | . . 17 Impact . | . . . Slashing 17 | . . 17 Piercing . | . . . Sneak Attacks . | . . . Combat Hostiles . | . . . Follow-up Attacks . | . . . Damage Inflicted 955 | 69 592 294 Guns 669 | 69 592 8 Cannons . | . . . Explosions 286 | . . 286 Melee . | . . . Ramming . | . . . Kinetic 848 | 69 592 187 Thermal . | . . . Explosive 107 | . . 107 Electromagnetic . | . . . Impact . | . . . Slashing . | . . . Piercing . | . . . Highest Corruption . | . . . Average Corruption . | . . . Corruption Purged . | . . . Corruption Blocked . | . . . Overload Shots . | . . . Overflow Damage . | . . . Projectiles . | . . . Explosions . | . . . Melee . | . . . Knockbacks . | . . . Impact . | . . . Kinetic . | . . . Secondary . | . . . Self-Inflicted Damage 163 | . . 163 Shots 4 | . . 4 Rammed . | . . . Targets Rammed . | . . . Kicked . | . . . Crushed . | . . . Highest Temperature 25 | . 25 . Average Temperature 10 | . 10 . Received Heat Transfer 339 | . 249 90 Siege Activations . | . . . Robots Corrupted . | . . . Combat Hostiles . | . . . Parts Fried . | . . . Impact Corruptions . | . . . Robots Melted . | . . . Combat Hostiles . | . . . Parts Melted . | . . . Heat Transferred . | . . . Parts Sabotaged . | . . . Parts Stolen . | . . . Parts Stripped . | . . . Power Chain Reactions . | . . . Alert | -11 -10 -10 ------- Run | Yrd Mat Sub Peak Influence 252 | 10 252 . Initial 6 | . 6 . Average 121 | 3 132 . Maximum Alert Level 1 | . 1 . Low Security (%) 79 | 100 77 . Level 1 20 | . 22 . Level 2 . | . . . Level 3 . | . . . Level 4 . | . . . Level 5 . | . . . High Security . | . . . Max Security . | . . . Squads Dispatched 2 | . 2 . Investigation 1 | . 1 . Extermination . | . . . Reinforcement 1 | . 1 . Assault . | . . . Garrison . | . . . Intercept . | . . . Searches Triggered . | . . . Construction Impeded . | . . . Haulers Reinforced . | . . . Active Scanning Responses . | . . . Cargo Convoy Interrupts . | . . . Stealth | -11 -10 -10 --------- Run | Yrd Mat Sub Distress Signals 1 | . 1 . Communications Jammed . | . . . Distress Signals . | . . . Times Spotted 22 | . 19 3 Peak Tracking Total 4 | . 4 1 Tactical Retreats 1 | . 1 . Traps | -11 -10 -10 ------- Run | Yrd Mat Sub Traps Triggered 1 | . . 1 Indirectly . | . . . Trap Hack Attempts . | . . . Triggered . | . . . Disarmed . | . . . Reprogrammed . | . . . Reused . | . . . Traps Extracted . | . . . Installed . | . . . Triggered . | . . . Machines | -11 -10 -10 ---------- Run | Yrd Mat Sub Machines Disabled . | . . . Max in Single Turn . | . . . Machines Repaired . | . . . Machines Dismantled . | . . . Machines Sabotaged . | . . . Overloaded Fab Kills . | . . . Hacking | -11 -10 -10 --------- Run | Yrd Mat Sub Machines Accessed 6 | . 6 . Terminals 5 | . 5 . Fabricators . | . . . Repair Stations . | . . . Recycling Units 1 | . 1 . Scanalyzers . | . . . Garrison Access . | . . . Total Hacks 9 | . 9 . Successful 6 | . 6 . Failed 3 | . 3 . Catastrophic . | . . . Database Lockouts . | . . . Manual 9 | . 9 . Terminals 7 | . 7 . Fabricators . | . . . Repair Stations . | . . . Recycling Units 2 | . 2 . Scanalyzers . | . . . Garrison Access . | . . . Terminal Hacks . | . . . Fabricator Hacks . | . . . Repair Station Hacks . | . . . Recycling Unit Hacks . | . . . Scanalyzer . | . . . Garrison Access Hacks . | . . . Unauthorized Hacks 6 | . 6 . Terminals 5 | . 5 . Skim 5 | . 5 . Fabricators . | . . . Repair Stations . | . . . Recycling Units 1 | . 1 . Tunnel 1 | . 1 . Scanalyzers . | . . . Garrison Access . | . . . Data Cores Recovered . | . . . Used . | . . . Hacking Detections 2 | . 2 . Full Trace Events . | . . . Feedback Events . | . . . Feedback Blocked . | . . . Robot Schematics Acquired . | . . . Robots Built . | . . . Authchips . | . . . Time . | . . . Total Robot Build Rating . | . . . Part Schematics Acquired . | . . . Parts Built . | . . . Authchips . | . . . Time . | . . . Total Part Build Rating . | . . . Parts Repaired . | . . . Time . | . . . Parts Recycled . | . . . Recycled Matter . | . . . Retrieved Matter . | . . . Retrieved Components . | . . . Parts Scanalyzed . | . . . Part Schematics Acquired . | . . . Parts Damaged . | . . . Bothacking | -11 -10 -10 ------------ Run | Yrd Mat Sub Used RIF Installer . | . . . Robots Hacked . | . . . Non-combat . | . . . Combat . | . . . Robot Hacks Applied . | . . . Relay Couplers Released . | . . . Fabnet Peak Effective % . | . . . Robots Rewired . | . . . Allies Hacked . | . . . Hacks Repelled . | . . . Allies | -11 -10 -10 -------- Run | Yrd Mat Sub Total Allies . | . . . Largest Group . | . . . Highest-Rated Group . | . . . Highest-Rated Ally . | . . . Total Orders . | . . . Ally Attacks . | . . . Total Damage . | . . . Kills . | . . . Allies Corrupted . | . . . Allies Melted . | . . . Intel | -11 -10 -10 ------- Run | Yrd Mat Sub Robot Analysis Total . | . . . Derelict Logs Recovered . | . . . Drone Launches . | . . . Drone Recoveries . | . . . Exploration | -11 -10 -10 ------------- Run | Yrd Mat Sub Turns Passed 2212 | 110 1144 958 Spaces Moved 1031 | 70 424 537 Core 8 | 8 . . Treads . | . . . Legs 1023 | 62 424 537 Wheels . | . . . Hover . | . . . Flight . | . . . Fastest Speed 50 | 50 120 120 Average Speed 135 | 112 120 151 Slowest Speed 190 | 120 120 190 Overloaded Moves . | . . . Propulsion Burnouts . | . . . Robots Hopped . | . . . Cave-ins Triggered . | . . . Exploration Rate (%) 36 | 6 71 32 Regions Visited 2 Branch Regions 1 Pre-discovered Areas 2 | . 2 . Known Exits Taken 1 | . 1 . Unknown Exits Taken 1 | 1 . . Scrap Searched 4 | . . 4 Spaces Dug 9 | . . 9 Terrain Destroyed 95 | . 13 82 Melee 9 | . . 9 Projectile . | . . . AOE 86 | . 13 73 Terrain Rammed . | . . . Walls Destroyed . | . . . Machines Disabled . | . . . Actions | -11 -10 -10 --------- Run | Yrd Mat Sub Total 1683 | 85 983 615 Wait 488 | . 484 4 Move 1029 | 69 423 537 Hop . | . . . Pick Up 21 | 2 12 7 Fast Attach 9 | 7 1 1 Attach 4 | . . 4 Detach . | . . . Swap 21 | . 8 13 Drop 14 | . 8 6 Fire 80 | 7 47 26 Melee 17 | . . 17 Ram . | . . . Kick . | . . . Crush . | . . . Escape Stasis . | . . . Rewire . | . . . Trap . | . . . Miscellaneous . | . . . Route ------- -11/Scrapyard -10/Materials (discovered 5 exits: *Mat x3 / [*Min] / *Sub) -10/Subcaves History --------- Turn | Location | Event 6 | -11/Scrapyard | Discovered new exit (range 16) 111 | -11/Scrapyard | Entered Materials 302 | -10/Materials | Build established: Mutant 419 | -10/Materials | Discovered new exit (range 13) 663 | -10/Materials | Discovered new exit (range 7) 751 | -10/Materials | Discovered new exit (range 16) 772 | -10/Materials | Learned Storage trap positions 839 | -10/Materials | Learned 2 Storage zone layouts 895 | -10/Materials | Learned 2 Mines zone layouts 940 | -10/Materials | Identified exit to Subcaves 976 | -10/Materials | Identified exit to Materials 976 | -10/Materials | Learned location of 2 exits from Materials 976 | -10/Materials | Build established: Scavenger-Mutant 1003 | -10/Materials | Learned Recycling recycling unit intel 1040 | -10/Materials | Learned location of Mines (-9) 1087 | -10/Materials | Learned location of 3 exits from Materials 1143 | -10/Materials | Learned Storage security intel 1255 | -10/Materials | Entered Subcaves 1409 | -10/Subcaves | Disturbed a concealed Subdweller 1444 | -10/Subcaves | Core integrity fell below 50% 1468 | -10/Subcaves | Lost 3 parts (1p1n1w) 1624 | -10/Subcaves | A swath of the cavern ceiling suddenly collapsed 1736 | -10/Subcaves | Build established: Mutant 1949 | -10/Subcaves | Core integrity fell below 20% 2088 | -10/Subcaves | Shifting Twisted Machinery released Battle Rifle 2159 | -10/Subcaves | Shifting Twisted Machinery released Sub. Optics 2160 | -10/Subcaves | Shifting Twisted Machinery released Piercing Trap 2213 | -10/Subcaves | Destroyed self with Subdweller Shrapnel Launcher Last Messages --------------- 01857_ Sub. Optics shoots sparks and powers down. 01857_ Dropped Broken Sub. Optics. 01884_ Acquired Sub. Monowheel. 01923_ Acquired 9 matter. 01952_ JS-925(R) destroyed. 01982_ Acquired 34 matter. 01988_ Subatomizers dissect the Broken Sub. Optics. 02070_ Subatomizers dissect the Cobbler Unit. Battle Rifle falls loose from the Twisted Machinery. 02121_ Subatomizers dissect the Cobbler Unit. 02123_ Acquired 36 matter. Sub. Optics falls loose from the Twisted Machinery. Piercing Trap falls loose from the Twisted Machinery. 02170_ Dropped Sub. Optics. Map ----- +----------------------------------------------------+ | ?????????????????????????????????????????????????? | | ?????????????????????????????????????????????????? | | ?????????????????????????????????????????????????? | | ?????????????????????????????????????????????????? | | ?????????????????????????????????????????????????? | | ?????????????????????????????????????????????????? | | ?????????????????????????????????????????????????? | | ?????????????????????????????????????????????????? | | ?????????????????????????????????????????????????? | | ?????????????????????????????????????????????????? | | ?????????????????????????????????????????????????? | | ?????????????????????????????????????????????????? | | ?????????????????????????????????????????????????? | | ?????????????????????????????????????????????????? | | ?????????????????????????????????????????????????? | | ?????????????????????????????????????????????????? | | ?????????????????????????????????????????????????? | | ?????????????????????????????????????????????????? | | ?????????????????????????????????????????????????? | | ?????????????????????????????????????????????????? | | ?????????????????????????????????????????????????? | | ?????????????????????????????????????????????????? | | ?????????????????????????????????????????????????? | | ????????????????# ???#########?# #???????????????? | | ????????????????# # ;; #???????????????? | | ?????????????????# @ #????????????????? | | ?????????????????# R #????????????????? | | ????????????????# # ;; #????????????????? | | ????????????????## #####;;; ##????????????????? | | ?????????????????#?????????# "" ##???????????????? | | ???????????????????????????#"""" ##??????????????? | | ???????????????????????????#""""" #??????????????? | | ???????????????????????????##"""" #??????????????? | | ????????????????????????????#"& ##??????????????? | | ????????????????????????????# " ##???????????????? | | ????????????????????????????# ##????????????????? | | ???????????????????????????##""!#????????????????? | | ???????????????????????????#"" #????????????????? | | ???????????????????????????#"" ##????????????????? | | ???????????????????????????# " #????????????????? | | ???????????????????????????#"" ##???????????????? | | ???????????????????????????##" ##??????????????? | | ???????????????????????????#""" ####???????????? | | ???????????????????????????##"" ##??????????? | | ????????????????????????????##" #??????????? | | ?????????????????????????????# ####????????? | | ????????????????????????????## ## #????????? | | ????????????????????????????# #??????##? | | ????????????????????????????## ####### ## | | ?????????????????????????????# # | +----------------------------------------------------+ Best States ------------- Heat Dissipation 25 Energy Generation 10 Energy Capacity 250 Matter Stores 300 Matter Capacity 300 Sight Range 21 Terrain Scan Range 16 Terrain Scan Density 10 Evasion (%) 55 Item Schematics ----------------- None Robot Schematics ------------------ None Fabricated ------------ Nothing Alien Tech Used ----------------- None Achievements -------------- None Challenges ------------ None Game ------ Seed PulseBurstArmor Manual? 0 Play Time 00:14:07 Cumulative 37.5 hours Start 2025.05.02 @ 13:54:31 End 2025.05.02 @ 14:08:07 Sessions 5 Manual Loads 0 Difficulty Rogue Special Mode None Game No. 83 Rogue 42 Adventurer 41 Explorer 0 Win Type - Total 1 Types 1/0/0/0/0/0/0/0/0 Lore% 30 Gallery% 41 Achievement% 44 Wizard Run 0 Options --------- Layout 2 ASCII 0 Keyboard 0 Movement Arrows Keybinds 0 Fullscreen 1 Font 24/Smallcaps Map View 50x44 Zoom Use 0% Tactical HUD 1 Map Filters NONE Filters NONE Steam 1 RUN: 8a805c75-53f0-448a-bb36-e91da5844cb9